fUST/lending_fUST_20241229
["ID","MTS","AMOUNT","RATE_DAILY","PERIOD"]
[346973639,1735444241099,-196219.4851344,0.0001,2]
[346973640,1735444241110,-910.39744267,0.00010171,2]
[346973641,1735444241120,-8724.87421758,0.00010211,2]
[346973642,1735444241129,-608.34320494,0.00010269,2]
[346973643,1735444241138,-500.0,0.00010269,2]
[346973644,1735444241147,-500.0,0.00010269,2]
[346973645,1735444241156,-525.66,0.00010269,2]
[346973646,1735444241166,-500.0,0.00010269,2]
[346973647,1735444241175,-500.0,0.00010269,2]
[346973648,1735444241184,-500.0,0.00010269,2]
[346973649,1735444241193,-500.0,0.00010269,2]
[346973650,1735444241203,-531.37,0.00010269,2]
[346973651,1735444241212,-500.0,0.00010269,2]
[346973652,1735444241222,-500.0,0.00010269,2]
[346973653,1735444241232,-500.0,0.00010269,2]
[346973654,1735444241242,-500.0,0.00010269,2]
[346973655,1735444241251,-500.0,0.00010269,2]
[346973656,1735444241262,-500.0,0.00010269,2]
[346973657,1735444241272,-424.67942302,0.0001027,2]
[346973658,1735444241281,-501.99937115,0.0001027,2]
[346973659,1735444241293,-500.0,0.0001027,2]
[346973660,1735444241302,-500.0,0.0001027,2]
[346973661,1735444241311,-500.0,0.0001027,2]
[346973662,1735444241321,-500.0,0.0001027,2]
[346973663,1735444241331,-500.0,0.0001027,2]
[346973664,1735444241340,-500.0,0.0001027,2]
[346973665,1735444241349,-500.0,0.0001027,2]
[346973666,1735444241357,-500.0,0.0001027,2]
[346973667,1735444241368,-500.0,0.0001027,2]
[346973668,1735444241377,-500.0,0.0001027,2]
[346973669,1735444241386,-500.0,0.0001027,2]
[346973670,1735444241396,-500.0,0.0001027,2]
[346973671,1735444241405,-500.0,0.0001027,2]
[346973672,1735444241414,-500.0,0.0001027,2]
[346973673,1735444241423,-500.0,0.0001027,2]
[346973674,1735444241432,-500.0,0.0001027,2]
[346973675,1735444241441,-500.0,0.0001027,2]
[346973676,1735444241451,-500.0,0.0001027,2]
[346973677,1735444241460,-500.0,0.0001027,2]
[346973678,1735444241470,-500.0,0.0001027,2]
[346973679,1735444241479,-500.0,0.0001027,2]
[346973680,1735444241488,-500.0,0.0001027,2]
[346973681,1735444241498,-500.0,0.0001027,2]
[346973682,1735444241507,-500.0,0.0001027,2]
[346973683,1735444241517,-550.7664183,0.0001027,2]
[346973684,1735444241527,-500.0,0.0001027,2]
[346973685,1735444241536,-501.64476329,0.0001027,2]
[346973686,1735444241545,-500.0,0.0001027,2]
[346973687,1735444241554,-500.0,0.0001027,2]
[346973688,1735444241564,-425.63,0.0001027,2]
[346973689,1735444241573,-4179.12,0.0001027,2]
[346973690,1735444241585,-500.0,0.0001027,2]
[346973691,1735444241594,-505.08678835,0.0001027,2]
[346973692,1735444241603,-533.2830051,0.0001027,2]
[346973693,1735444241612,-221.76,0.0001027,2]
[346973694,1735444241621,-487.04849648,0.00010271,2]
[346973695,1735444241630,-500.86610411,0.00010271,2]
[346973696,1735444241639,-500.65587421,0.00010271,2]
[346973697,1735444241648,-502.82223287,0.00010271,2]
[346973698,1735444241657,-511.08819743,0.00010271,2]
[346973699,1735444241666,-504.13531925,0.00010271,2]
[346973700,1735444241676,-273.87819711,0.00010271,2]
[346973701,1735444241685,-500.0,0.00010271,2]
[346973702,1735444241694,-498.60529947,0.00010271,2]
[346973703,1735444241704,-503.0140394,0.00010271,2]
[346973704,1735444241713,-501.5503333,0.00010271,2]
[346973705,1735444241722,-500.0,0.00010271,2]
[346973706,1735444241731,-500.0,0.00010271,2]
[346973707,1735444241740,-500.0,0.00010271,2]
[346973708,1735444241750,-502.95094852,0.00010271,2]
[346973709,1735444241759,-501.66399504,0.00010271,2]
[346973710,1735444241768,-500.0,0.00010271,2]
[346973711,1735444241777,-385.21,0.00010271,2]
[346973712,1735444241787,-242.25,0.00010271,2]
[346973713,1735444241796,-513.35,0.00010271,2]
[346973714,1735444241806,-500.0,0.00010271,2]
[346973715,1735444241816,-502.13210088,0.00010271,2]
[346973716,1735444241826,-508.63563486,0.00010271,2]
[346973717,1735444241837,-502.13076604,0.00010271,2]
[346973718,1735444241846,-502.02421527,0.00010271,2]
[346973719,1735444241856,-500.0,0.00010271,2]
[346973720,1735444241866,-500.0,0.00010271,2]
[346973721,1735444241876,-500.0,0.00010271,2]
[346973722,1735444241884,-500.0,0.00010271,2]
[346973723,1735444241893,-500.0,0.00010271,2]
[346973724,1735444241902,-1316.13,0.00010271,2]
[346973725,1735444241911,-500.0,0.00010271,2]
[346973726,1735444241920,-500.0,0.00010271,2]
[346973727,1735444241929,-694.59,0.00010271,2]
[346973728,1735444241937,-503.32136563,0.00010271,2]
[346973729,1735444241947,-501.18025801,0.00010271,2]
[346973730,1735444241956,-501.2235022,0.00010272,2]
[346973731,1735444241966,-521.87654945,0.00010272,2]
[346973732,1735444241976,-500.0,0.00010272,2]
[346973733,1735444241985,-500.0,0.00010272,2]
[346973734,1735444241995,-910.39744267,0.00010444,2]
[346973735,1735444242004,-8724.87421758,0.00010472,2]
[346973736,1735444242014,-500.0,0.00010543,2]
[346973737,1735444242023,-525.66,0.00010543,2]
[346973738,1735444242032,-500.0,0.00010543,2]
[346973739,1735444242041,-504.72192284,0.00010543,2]
[346973740,1735444242051,-500.0,0.00010543,2]
[346973741,1735444242060,-500.0,0.00010543,2]
[346973742,1735444242069,-531.37,0.00010543,2]
[346973743,1735444242079,-500.0,0.00010543,2]
[346973744,1735444242088,-500.0,0.00010543,2]
[346973745,1735444242097,-500.0,0.00010543,2]
[346973746,1735444242107,-500.0,0.00010543,2]
[346973747,1735444242116,-500.0,0.00010543,2]
[346973748,1735444242126,-500.0,0.00010543,2]
[346973749,1735444242135,-500.0,0.00010544,2]
[346973750,1735444242145,-414.39,0.00010544,2]
[346973751,1735444242154,-577.98,0.00010544,2]
[346973752,1735444242163,-500.0,0.00010544,2]
[346973753,1735444242173,-500.0,0.00010544,2]
[346973754,1735444242183,-500.0,0.00010544,2]
[346973755,1735444242192,-500.0,0.00010544,2]
[346973756,1735444242201,-500.0,0.00010544,2]
[346973757,1735444242211,-500.0,0.00010544,2]
[346973758,1735444242221,-500.0,0.00010544,2]
[346973759,1735444242230,-500.0,0.00010544,2]
[346973760,1735444242239,-500.0,0.00010544,2]
[346973761,1735444242248,-500.0,0.00010544,2]
[346973762,1735444242258,-500.0,0.00010544,2]
[346973763,1735444242267,-500.0,0.00010544,2]
[346973764,1735444242277,-500.0,0.00010544,2]
[346973765,1735444242287,-154.99,0.00010544,2]
[346973766,1735444242300,-500.0,0.00010544,2]
[346973767,1735444242309,-500.0,0.00010544,2]
[346973768,1735444242319,-500.0,0.00010544,2]
[346973769,1735444242330,-500.0,0.00010544,2]
[346973770,1735444242339,-500.0,0.00010544,2]
[346973771,1735444242349,-500.0,0.00010544,2]
[346973772,1735444242359,-609.09506793,0.00010544,2]
[346973773,1735444242370,-500.0,0.00010544,2]
[346973774,1735444242380,-4179.12,0.00010544,2]
[346973775,1735444242389,-500.0,0.00010544,2]
[346973776,1735444242399,-500.0,0.00010545,2]
[346973777,1735444242408,-500.0,0.00010545,2]
[346973778,1735444242417,-1316.13,0.00010545,2]
[346973779,1735444242427,-292.36703202,0.00010545,2]
[346973780,1735444242510,-500.0,0.00010545,2]
[346973781,1735444242520,-694.59,0.00010545,2]
[346973782,1735444242529,-500.0,0.00010546,2]
[346973783,1735444242539,-8724.87421758,0.00010705,2]
[346973784,1735444242548,-910.39744267,0.00010718,2]
[346973785,1735444242558,-500.0,0.00010721,2]
[346973786,1735444242568,-525.66,0.00010817,2]
[346973787,1735444242577,-500.0,0.00010817,2]
[346973788,1735444242588,-500.0,0.00010817,2]
[346973789,1735444242598,-500.0,0.00010817,2]
[346973790,1735444242608,-531.37,0.00010817,2]
[346973791,1735444242617,-500.0,0.00010817,2]
[346973792,1735444242627,-500.0,0.00010817,2]
[346973793,1735444242637,-500.0,0.00010817,2]
[346973794,1735444242646,-500.0,0.00010817,2]
[346973795,1735444242656,-262.87553771,0.00010818,2]
[346973796,1735444242665,-447.8213692,0.00010818,2]
[346973797,1735444242675,-511.16130928,0.00010818,2]
[346973798,1735444242684,-623.88820474,0.00010818,2]
[346973799,1735444242694,-452.97412801,0.00010818,2]
[346973800,1735444242703,-500.0,0.00010818,2]
[346973801,1735444242713,-500.0,0.00010818,2]
[346973803,1735444242722,-500.0,0.00010818,2]
[346973805,1735444242732,-500.0,0.00010818,2]
[346973806,1735444242742,-500.0,0.00010818,2]
[346973807,1735444242752,-500.0,0.00010818,2]
[346973808,1735444242761,-500.0,0.00010818,2]
[346973809,1735444242770,-500.0,0.00010818,2]
[346973810,1735444242780,-500.0,0.00010818,2]
[346973811,1735444242789,-523.93819028,0.00010818,2]
[346973812,1735444242799,-500.0,0.00010818,2]
[346973813,1735444242808,-4179.12,0.00010818,2]
[346973814,1735444242817,-500.0,0.00010818,2]
[346973815,1735444242827,-500.0,0.00010819,2]
[346973816,1735444242838,-500.0,0.00010819,2]
[346973817,1735444242848,-1316.13,0.00010819,2]
[346973818,1735444242857,-694.59,0.00010819,2]
[346973819,1735444242867,-500.0,0.0001082,2]
[346973820,1735444242876,-258.5,0.00010857,2]
[346973821,1735444242886,-2754.96309897,0.00010942,2]
[346973822,1735444242895,-910.39744267,0.00010991,2]
[346973823,1735444242905,-500.0,0.00010999,2]
[346973824,1735444242914,-2873.93020903,0.00011,2]
[346973825,1735444242923,-525.66,0.00011091,2]
[346973826,1735444242933,-500.0,0.00011091,2]
[346973827,1735444242943,-500.0,0.00011091,2]
[346973829,1735444242952,-500.0,0.00011091,2]
[346973830,1735444242961,-531.37,0.00011091,2]
[346973832,1735444242970,-500.0,0.00011091,2]
[346973834,1735444242980,-500.0,0.00011091,2]
[346973836,1735444242989,-217.68,0.00011091,2]
[346973837,1735444242999,-500.0,0.00011091,2]
[346973838,1735444243008,-500.0,0.00011092,2]
[346973839,1735444243017,-500.0,0.00011092,2]
[346973840,1735444243026,-500.0,0.00011092,2]
[346973841,1735444243035,-500.0,0.00011092,2]
[346973842,1735444243045,-500.0,0.00011092,2]
[346973843,1735444243054,-500.0,0.00011092,2]
[346973844,1735444243063,-159.83782104,0.00011092,2]
[346973845,1735444243073,-4179.12,0.00011092,2]
[346973846,1735444243082,-500.0,0.00011092,2]
[346973847,1735444243091,-500.0,0.00011093,2]
[346973848,1735444243101,-500.0,0.00011093,2]
[346973849,1735444243110,-1316.13,0.00011093,2]
[346973850,1735444243119,-694.59,0.00011093,2]
[346973851,1735444243129,-500.0,0.00011094,2]
[346973852,1735444243139,-500.30083662,0.00011135,2]
[346973853,1735444243148,-502.82425251,0.00011269,2]
[346973854,1735444243157,-525.66,0.00011365,2]
[346973855,1735444243166,-500.0,0.00011365,2]
[346973856,1735444243175,-500.0,0.00011365,2]
[346973857,1735444243185,-235.08,0.00011365,2]
[346973859,1735444243194,-531.37,0.00011365,2]
[346973860,1735444243203,-500.0,0.00011365,2]
[346973862,1735444243212,-500.0,0.00011365,2]
[346973864,1735444243222,-500.0,0.00011365,2]
[346973866,1735444243231,-500.0,0.00011366,2]
[346973868,1735444243240,-500.0,0.00011366,2]
[346973870,1735444243250,-500.0,0.00011366,2]
[346973872,1735444243259,-571.024721,0.00011366,2]
[346973874,1735444243268,-295.29,0.00011366,2]
[346973876,1735444243279,-4179.12,0.00011366,2]
[346973878,1735444243290,-500.0,0.00011367,2]
[346973880,1735444243301,-1316.13,0.00011367,2]
[346973881,1735444243310,-694.59,0.00011367,2]
[346973882,1735444243320,-500.0,0.00011368,2]
[346973883,1735444243330,-525.66,0.00011639,2]
[346973884,1735444243340,-467.26868813,0.00011639,2]
[346973885,1735444243351,-500.0,0.00011639,2]
[346973886,1735444243360,-531.37,0.00011639,2]
[346973887,1735444243371,-500.0,0.00011639,2]
[346973888,1735444243380,-500.0,0.00011639,2]
[346973889,1735444243389,-500.0,0.00011639,2]
[346973890,1735444243399,-500.0,0.0001164,2]
[346973891,1735444243408,-421.23,0.0001164,2]
[346973892,1735444243417,-348.21,0.0001164,2]
[346973893,1735444243430,-4179.12,0.0001164,2]
[346973894,1735444243444,-500.0,0.00011641,2]
[346973895,1735444243457,-1316.13,0.00011641,2]
[346973897,1735444243469,-694.59,0.00011641,2]
[346973899,1735444243481,-500.0,0.00011642,2]
[346973902,1735444243492,-525.66,0.00011913,2]
[346973905,1735444243504,-500.0,0.00011913,2]
[346973909,1735444243517,-531.37,0.00011913,2]
[346973912,1735444243528,-569.48821299,0.00011913,2]
[346973916,1735444243541,-500.0,0.00011913,2]
[346973920,1735444243554,-500.0,0.00011913,2]
[346973922,1735444243566,-553.56,0.00011914,2]
[346973924,1735444243578,-4179.12,0.00011914,2]
[346973927,1735444243589,-500.0,0.00011915,2]
[346973929,1735444243602,-1316.13,0.00011915,2]
[346973931,1735444243615,-694.59,0.00011915,2]
[346973934,1735444243627,-500.0,0.00011916,2]
[346973936,1735444243638,-151.0,0.00012,2]
[346973938,1735444243649,-525.66,0.00012187,2]
[346973940,1735444243660,-500.0,0.00012187,2]
[346973942,1735444243671,-531.37,0.00012187,2]
[346973945,1735444243683,-500.0,0.00012187,2]
[346973947,1735444243695,-500.0,0.00012187,2]
[346973949,1735444243707,-4179.12,0.00012188,2]
[346973952,1735444243718,-500.0,0.00012189,2]
[346973954,1735444243727,-443.02053533,0.00012189,2]
[346973956,1735444243737,-1316.13,0.00012189,2]
[346973958,1735444243749,-500.0,0.0001219,2]
[346973960,1735444243760,-525.66,0.00012461,2]
[346973963,1735444243773,-500.0,0.00012461,2]
[346973965,1735444243785,-531.37,0.00012461,2]
[346973967,1735444243797,-500.0,0.00012461,2]
[346973969,1735444243808,-163.28,0.00012461,2]
[346973972,1735444243820,-4179.12,0.00012462,2]
[346973974,1735444243832,-1316.13,0.00012463,2]
[346973976,1735444243843,-500.0,0.00012464,2]
[346973979,1735444243856,-500.0,0.00012733,2]
[346973981,1735444243868,-525.66,0.00012735,2]
[346973983,1735444243878,-500.0,0.00012735,2]
[346973985,1735444243888,-531.37,0.00012735,2]
[346973987,1735444243897,-500.0,0.00012735,2]
[346973989,1735444243907,-4179.12,0.00012736,2]
[346973991,1735444243917,-1316.13,0.00012737,2]
[346973994,1735444243929,-500.0,0.00012738,2]
[346973996,1735444243942,-186.70579109,0.000129,2]
[346973998,1735444243954,-186.70579104,0.000129,2]
[346974001,1735444243965,-186.70579104,0.00012981,2]
[346974003,1735444243975,-500.0,0.00012995,2]
[346974005,1735444243986,-500.0,0.00012996,2]
[346974007,1735444243996,-500.0,0.00012996,2]
[346974009,1735444244007,-500.0,0.00012996,2]
[346974010,1735444244019,-3709.56,0.00012996,2]
[346974011,1735444244029,-500.0,0.00012996,2]
[346974012,1735444244039,-500.0,0.00012996,2]
[346974013,1735444244049,-500.0,0.00012996,2]
[346974014,1735444244059,-1327.14,0.00012996,2]
[346974015,1735444244070,-151.0,0.00013,2]
[346974016,1735444244082,-525.66,0.00013009,2]
[346974017,1735444244092,-500.0,0.00013009,2]
[346974018,1735444244103,-531.37,0.00013009,2]
[346974019,1735444244113,-500.0,0.00013009,2]
[346974020,1735444244124,-4179.12,0.0001301,2]
[346974021,1735444244135,-1316.13,0.00013011,2]
[346974022,1735444244145,-500.0,0.00013012,2]
[346974023,1735444244156,-500.0,0.0001327,2]
[346974024,1735444244167,-500.0,0.0001327,2]
[346974025,1735444244178,-3709.56,0.0001327,2]
[346974026,1735444244189,-500.0,0.0001327,2]
[346974027,1735444244199,-1327.14,0.0001327,2]
[346974028,1735444244210,-525.66,0.00013283,2]
[346974029,1735444244220,-399.98,0.00013283,2]
[346974030,1735444244231,-531.37,0.00013283,2]
[346974031,1735444244242,-500.0,0.00013283,2]
[346974032,1735444244252,-500.0,0.00013284,2]
[346974033,1735444244263,-4179.12,0.00013284,2]
[346974034,1735444244274,-1316.13,0.00013285,2]
[346974035,1735444244284,-500.0,0.00013286,2]
[346974036,1735444244299,-5467.83297235,0.00013497,2]
[346974037,1735444244310,-500.0,0.00013544,2]
[346974038,1735444244321,-500.0,0.00013544,2]
[346974039,1735444244334,-3709.56,0.00013544,2]
[346974040,1735444244344,-500.0,0.00013544,2]
[346974041,1735444244355,-1327.14,0.00013544,2]
[346974042,1735444244366,-525.66,0.00013557,2]
[346974043,1735444244378,-531.37,0.00013557,2]
[346974044,1735444244388,-371.79,0.00013557,2]
[346974045,1735444244399,-4179.12,0.00013558,2]
[346974046,1735444244410,-1316.13,0.00013559,2]
[346974047,1735444244420,-500.0,0.0001356,2]
[346974048,1735444244431,-500.0,0.00013697,2]
[346974049,1735444244442,-598.0,0.00013697,2]
[346974050,1735444244454,-1000.0,0.00013698,2]
[346974051,1735444244465,-1000.0,0.00013698,2]
[346974052,1735444244476,-1000.0,0.00013698,2]
[346974053,1735444244487,-500.0,0.00013698,2]
[346974054,1735444244498,-500.0,0.00013698,2]
[346974055,1735444244509,-500.0,0.00013698,2]
[346974056,1735444244622,-500.0,0.00013698,2]
[346974057,1735444244633,-500.0,0.00013698,2]
[346974058,1735444244643,-500.0,0.00013698,2]
[346974059,1735444244652,-500.0,0.00013698,2]
[346974060,1735444244662,-191.559891,0.00013699,2]
[346974061,1735444244671,-500.0,0.00013699,2]
[346974062,1735444244681,-500.0,0.00013699,2]
[346974063,1735444244690,-486.17053471,0.00013699,2]
[346974064,1735444244699,-500.0,0.00013699,2]
[346974065,1735444244708,-500.0,0.00013699,2]
[346974066,1735444244718,-500.0,0.00013699,2]
[346974067,1735444244727,-500.0,0.00013699,2]
[346974068,1735444244736,-500.0,0.00013699,2]
[346974069,1735444244746,-500.0,0.00013818,2]
[346974070,1735444244755,-500.0,0.00013818,2]
[346974071,1735444244764,-3709.56,0.00013818,2]
[346974072,1735444244773,-500.0,0.00013818,2]
[346974073,1735444244783,-1327.14,0.00013818,2]
[346974074,1735444244792,-525.66,0.00013831,2]
[346974075,1735444244801,-531.37,0.00013831,2]
[346974076,1735444244810,-4179.12,0.00013832,2]
[346974077,1735444244820,-216.75135015,0.00013834,2]
[346974078,1735444244829,-151.0,0.000139,2]
[346974079,1735444244839,-400.0,0.00013973,2]
[346974080,1735444244848,-500.0,0.00014092,2]
[346974081,1735444244857,-506.75950075,0.00014092,2]
[346974082,1735444244867,-3709.56,0.00014092,2]
[346974083,1735444244876,-500.0,0.00014092,2]
[346974084,1735444244885,-1327.14,0.00014092,2]
[346974085,1735444244894,-525.66,0.00014105,2]
[346974086,1735444244903,-531.37,0.00014105,2]
[346974087,1735444244912,-4179.12,0.00014106,2]
[346974088,1735444244922,-500.0,0.00014366,2]
[346974089,1735444244931,-3709.56,0.00014366,2]
[346974090,1735444244941,-500.0,0.00014366,2]
[346974091,1735444244950,-1327.14,0.00014366,2]
[346974092,1735444244990,-525.66,0.00014379,2]
[346974093,1735444244999,-531.37,0.00014379,2]
[346974094,1735444245008,-4179.12,0.0001438,2]
[346974095,1735444245017,-186.70579104,0.00014524,2]
[346974096,1735444245027,-500.0,0.0001464,2]
[346974097,1735444245036,-3709.56,0.0001464,2]
[346974098,1735444245045,-500.0,0.0001464,2]
[346974099,1735444245054,-1327.14,0.0001464,2]
[346974100,1735444245064,-525.66,0.00014653,2]
[346974101,1735444245073,-4179.12,0.00014653,2]
[346974102,1735444245082,-531.37,0.00014653,2]
[346974103,1735444245091,-151.0,0.000149,2]
[346974104,1735444245100,-500.0,0.00014914,2]
[346974105,1735444245110,-3709.56,0.00014914,2]
[346974106,1735444245119,-500.0,0.00014914,2]
[346974107,1735444245129,-1327.14,0.00014914,2]
[346974108,1735444245138,-525.66,0.00014927,2]
[346974109,1735444245147,-4179.12,0.00014927,2]
[346974110,1735444245157,-531.37,0.00014927,2]
[346974111,1735444245166,-1013.75871396,0.0001499,2]
[346974112,1735444245175,-1013.75871396,0.00014995,2]
[346974113,1735444245184,-1013.75871396,0.00014996,2]
[346974114,1735444245193,-626.48138934,0.00015188,2]
[346974115,1735444245202,-3709.56,0.00015188,2]
[346974116,1735444245211,-500.0,0.00015188,2]
[346974117,1735444245220,-1327.14,0.00015188,2]
[346974118,1735444245229,-525.66,0.00015201,2]
[346974119,1735444245239,-4179.12,0.00015201,2]
[346974120,1735444245248,-531.37,0.00015201,2]
[346974121,1735444245259,-3709.56,0.00015462,2]
[346974122,1735444245268,-500.0,0.00015462,2]
[346974123,1735444245278,-1327.14,0.00015462,2]
[346974124,1735444245287,-151.0,0.00015462,2]
[346974125,1735444245305,-151.0,0.00015462,2]
[346974126,1735444245314,-151.0,0.00015462,2]
[346974127,1735444245323,-525.66,0.00015475,2]
[346974128,1735444245333,-4179.12,0.00015475,2]
[346974129,1735444245343,-531.37,0.00015475,2]
[346974130,1735444245352,-3709.56,0.00015736,2]
[346974131,1735444245362,-500.0,0.00015736,2]
[346974132,1735444245371,-1327.14,0.00015736,2]
[346974133,1735444245380,-525.66,0.00015749,2]
[346974134,1735444245389,-4179.12,0.00015749,2]
[346974135,1735444245399,-531.37,0.00015749,2]
[346974136,1735444245408,-151.0,0.000159,2]
[346974137,1735444245417,-150.0,0.00016,2]
[346974138,1735444245427,-2908.98033667,0.0001601,2]
[346974139,1735444245447,-495.1143853,0.0001601,2]
[346974142,1735444245954,-305.46527803,0.0001601,2]
[346974143,1735444245964,-500.0,0.0001601,2]
[346974144,1735444245974,-1327.14,0.0001601,2]
[346974146,1735444245983,-151.0,0.0001601,2]
[346974148,1735444245993,-151.0,0.0001601,2]
[346974150,1735444246002,-151.0,0.0001601,2]
[346974151,1735444246011,-151.0,0.0001601,2]
[346974153,1735444246021,-525.66,0.00016023,2]
[346974155,1735444246030,-692.72094946,0.00016023,2]
[346974161,1735444246093,-1520.64753802,0.00016023,2]
[346974169,1735444246174,-500.0,9.997e-05,2]
[346974170,1735444246184,-500.0,0.00010271,2]
[346974172,1735444246193,-364.12763544,0.00016023,2]
[346974185,1735444246428,-500.0,9.995e-05,2]
[346974186,1735444246439,-500.0,0.00010545,2]
[346974188,1735444246448,-1497.676774,0.00016023,2]
[346974189,1735444246502,-103.94710308,0.00016023,2]
[346974190,1735444246512,-531.37,0.00016023,2]
[346974191,1735444246521,-186.70579104,0.00016067,2]
[346974192,1735444246530,-3709.56,0.00016284,2]
[346974193,1735444246539,-500.0,0.00016284,2]
[346974194,1735444246549,-231.552754,0.00016284,2]
[346974195,1735444246558,-231.552754,0.00016284,2]
[346974196,1735444246567,-1327.14,0.00016284,2]
[346974197,1735444246577,-151.0,0.00016284,2]
[346974198,1735444246586,-151.0,0.00016284,2]
[346974199,1735444246595,-151.0,0.00016284,2]
[346974200,1735444246611,-525.71,0.00016296,2]
[346974201,1735444246622,-531.48328045,0.00016296,2]
[346974202,1735444246631,-4179.19036728,0.00016297,2]
[346974203,1735444246640,-167.924659,0.00016299,2]
[346974204,1735444246650,-167.924659,0.00016299,2]
[346974205,1735444246659,-500.0,0.00016438,2]
[346974206,1735444246668,-200.69159421,0.00016438,2]
[346974207,1735444246677,-1119.14,0.000165,2]
[346974208,1735444246686,-2922.28,0.000165,2]
[346974209,1735444246695,-4054.77,0.000165,2]
[346974210,1735444246704,-151.0,0.000165,2]
[346974211,1735444246714,-3709.56,0.00016558,2]
[346974212,1735444246723,-500.0,0.00016558,2]
[346974213,1735444246732,-1327.14,0.00016558,2]
[346974214,1735444246741,-3709.56,0.00016832,2]
[346974215,1735444246750,-500.0,0.00016832,2]
[346974216,1735444246760,-1327.14,0.00016832,2]
[346974217,1735444246769,-151.0,0.000169,2]
[346974218,1735444246778,-151.0,0.000169,2]
[346974219,1735444246787,-239.734,0.0001703,2]
[346974220,1735444246796,-3709.56,0.00017106,2]
[346974221,1735444246805,-500.0,0.00017106,2]
[346974222,1735444246814,-1327.14,0.00017106,2]
[346974223,1735444246823,-3709.56,0.0001738,2]
[346974224,1735444246832,-500.0,0.0001738,2]
[346974225,1735444246841,-1327.14,0.0001738,2]
[346974226,1735444246929,-186.70579104,0.0001761,2]
[346974227,1735444246939,-3709.56,0.00017654,2]
[346974228,1735444246948,-500.0,0.00017654,2]
[346974229,1735444246957,-1327.14,0.00017654,2]
[346974230,1735444246966,-151.0,0.000178,2]
[346974231,1735444246975,-151.0,0.000178,2]
[346974232,1735444246985,-150.0,0.00017871,2]
[346974233,1735444246993,-2106.0,0.00017871,2]
[346974234,1735444247002,-1757.137,0.00017871,2]
[346974235,1735444247011,-3709.56,0.00017928,2]
[346974236,1735444247020,-500.0,0.00017928,2]
[346974237,1735444247029,-1327.14,0.00017928,2]
[346974238,1735444247039,-153.0,0.00017946,2]
[346974239,1735444247048,-153.0,0.00017946,2]
[346974240,1735444247057,-3709.56,0.00018202,2]
[346974241,1735444247066,-500.0,0.00018202,2]
[346974242,1735444247075,-1327.14,0.00018202,2]
[346974243,1735444247084,-3709.56,0.00018476,2]
[346974244,1735444247093,-500.0,0.00018476,2]
[346974245,1735444247102,-1327.14,0.00018476,2]
[346974246,1735444247111,-3709.56,0.0001875,2]
[346974247,1735444247120,-294.94473445,0.0001875,2]
[346974248,1735444247129,-1327.14,0.0001875,2]
[346974249,1735444247138,-151.0,0.0001875,2]
[346974250,1735444247147,-151.0,0.0001875,2]
[346974251,1735444247157,-151.0,0.000188,2]
[346974252,1735444247166,-151.0,0.000188,2]
[346974253,1735444247175,-154.94656358,0.000189,2]
[346974254,1735444247184,-3709.56,0.00019024,2]